bitfinex/quotes_ETHUSD_20241231
["timestamp","ask_amount","ask_price","bid_price","bid_amount"]
[1735647963433,16.65,3407.2,3407.1,20.95325434]
[1735647963618,13.38175897,3407.2,3407.1,20.95325434]
[1735647964026,16.71175897,3407.2,3407.1,20.95325434]
[1735647964751,16.71175897,3407.2,3407.1,19.11833169]
[1735647964910,12.35463598,3407.2,3407.1,19.11833169]
[1735647965111,9.2624935,3407.2,3407.1,19.11833169]
[1735647965450,3.3925735,3407.2,3407.1,19.11833169]
[1735647965654,3.3925735,3407.2,3407.1,21.55657529]
[1735647965957,1.9250935,3407.2,3407.1,21.55657529]
[1735647966248,3.5e-06,3407.2,3407.1,21.55657529]
[1735647966480,3.3300035,3407.2,3407.1,21.55657529]
[1735647967116,3.3300035,3407.2,3407.1,19.11833169]
[1735647967315,4.54445899,3407.5,3407.2,5.1976]
[1735647967623,4.54445899,3407.5,3407.4,10.95541199]
[1735647967929,4.54445899,3407.5,3407.4,15.95541199]
[1735647968242,4.54445899,3407.5,3407.4,13.13238]
[1735647968453,4.54445899,3407.5,3407.4,15.95541199]
[1735647968959,7.87445899,3407.5,3407.4,15.95541199]
[1735647969115,7.87445899,3407.5,3407.4,17.3963002]
[1735647969927,7.87445899,3407.5,3407.4,21.93810368]
[1735647971652,11.20445899,3407.5,3407.4,21.93810368]
[1735647972862,5.33505899,3407.5,3407.4,25.59490129]
[1735647973162,3.86770899,3407.5,3407.4,25.59490129]
[1735647973362,8.99e-06,3407.5,3407.4,25.59490129]
[1735647974044,0.39530899,3407.5,3407.4,25.59490129]
[1735647974454,4.8685,3408.9,3408.3,2.93401]
[1735647974659,4.8685,3408.9,3408.3,13.75704199]
[1735647976231,4.8685,3408.9,3408.3,14.93123499]
[1735647976429,6.66,3408.4,3408.3,14.93123499]
[1735647976669,6.66,3408.4,3408.3,19.47303847]
[1735647977508,6.66,3408.4,3408.3,13.71599648]
[1735647977683,8.1985,3408.4,3408.3,12.54180348]
[1735647978270,8.1985,3408.4,3408.3,14.3726959]
[1735647978877,11.5285,3408.4,3408.3,14.3726959]
[1735647979480,11.5285,3408.4,3408.3,11.74208449]
[1735647981077,9.99,3408.4,3408.3,16.27849206]
[1735647981292,13.32,3408.4,3408.3,13.27849206]
[1735647981806,13.32,3408.4,3408.3,10.45546007]
[1735647982270,13.32,3408.4,3408.3,7.52145007]
[1735647982470,14.80597,3408.4,3408.3,7.52145007]
[1735647982680,16.34567,3408.4,3408.3,11.32427771]
[1735647983079,14.8597,3408.4,3408.3,11.32427771]
[1735647983788,18.1897,3408.4,3408.3,14.25828771]
[1735647984481,16.65,3408.4,3408.3,10.45546007]
[1735647984870,16.65,3408.4,3408.3,7.52145007]
[1735647985076,16.65,3408.4,3408.3,10.45546007]
[1735647985391,16.65,3408.4,3408.3,12.07341113]
[1735647986002,16.65,3408.4,3408.3,13.90430355]
[1735647986162,19.98,3408.4,3408.3,13.90430355]
[1735647987191,19.98,3408.4,3408.3,14.05027008]
[1735647988995,23.31,3408.4,3408.3,14.05027008]
[1735647989902,23.31,3408.4,3408.3,15.88104264]
[1735647990890,23.31,3408.4,3408.3,14.05027008]
[1735647991388,26.64,3408.4,3408.3,14.05027008]
[1735647991711,26.64,3408.4,3408.3,17.05027008]
[1735647991917,26.64,3408.4,3408.3,17.60027008]
[1735647993716,26.64,3408.4,3408.3,17.44738508]
[1735647993915,29.97,3408.4,3408.3,17.44738508]
[1735647994070,29.97,3408.4,3408.3,20.49865024]
[1735647994274,26.70320339,3408.4,3408.3,20.49865024]
[1735647997020,30.03320339,3408.4,3408.3,20.49865024]
[1735647998008,30.03320339,3408.4,3408.3,17.44738508]
[1735648000138,33.36320339,3408.4,3408.3,17.44738508]
[1735648002596,36.69320339,3408.4,3408.3,17.44738508]
[1735648004824,40.02320339,3408.4,3408.3,21.10890327]
[1735648005481,41.61340339,3408.4,3408.3,18.94095221]
[1735648005686,40.02320339,3408.4,3408.3,18.94095221]
[1735648007322,43.35320339,3408.4,3408.3,15.27943402]
[1735648009531,46.68320339,3408.4,3408.3,15.27943402]
[1735648009895,46.68320339,3408.4,3408.3,15.82943402]
[1735648010554,43.41631028,3408.4,3408.3,15.82943402]
[1735648011367,43.41631028,3408.4,3408.3,15.27943402]
[1735648011985,46.74631028,3408.4,3408.3,15.27943402]
[1735648012838,46.74631028,3408.4,3408.3,18.55976224]
[1735648014292,50.07631028,3408.4,3408.3,18.55976224]
[1735648014488,50.07631028,3408.4,3408.3,14.27083766]
[1735648015790,50.07631028,3408.4,3408.3,15.27543178]
[1735648016706,53.40631028,3408.4,3408.3,15.27543178]
[1735648016908,53.40631028,3408.4,3408.3,19.56631773]
[1735648018252,53.40631028,3408.4,3408.3,15.27543178]
[1735648018548,55.01391028,3408.4,3408.3,15.27543178]
[1735648019208,58.34391028,3408.4,3408.3,15.27543178]
[1735648019937,58.34391028,3408.4,3408.3,12.34142178]
[1735648020097,61.34020985,3408.4,3408.3,9.34142178]
[1735648020302,61.34020985,3408.4,3408.3,8.24043678]
[1735648021153,61.34020985,3408.4,3408.3,11.06346877]
[1735648021318,56.73631028,3408.4,3408.3,13.99747877]
[1735648021704,60.06631028,3408.4,3408.3,13.99747877]
[1735648022462,60.06631028,3408.4,3408.3,18.62357877]
[1735648024126,63.39631028,3408.4,3408.3,18.62357877]
[1735648025305,63.39631028,3408.4,3408.3,21.28507019]
[1735648026676,63.45935721,3408.4,3408.3,21.28507019]
[1735648027224,63.45935721,3408.4,3408.3,26.34221558]
[1735648027425,59.10367332,3408.4,3408.3,26.34221558]
[1735648028237,59.10367332,3408.4,3408.3,21.28507019]
[1735648028623,59.10367332,3408.4,3408.3,22.41970492]
[1735648029265,62.43367332,3408.4,3408.3,21.4151108]
[1735648029621,56.56583332,3408.4,3408.3,21.4151108]
[1735648029853,55.56583332,3408.4,3408.3,21.4151108]
[1735648030249,54.09887332,3408.4,3408.3,21.4151108]
[1735648030454,46.76407332,3408.4,3408.3,28.23925619]
[1735648030822,45.1108021,3408.4,3408.3,28.23925619]
[1735648031020,45.1108021,3408.4,3408.3,23.1821108]
[1735648031335,42.99701736,3408.4,3408.3,24.8644185]
[1735648032059,42.99701736,3408.4,3408.3,30.95004236]
[1735648033364,42.99701736,3408.4,3408.3,21.4151108]
[1735648033963,46.32701736,3408.4,3408.3,19.2390108]
[1735648034267,47.89151736,3408.4,3408.3,13.05887465]
[1735648034435,47.89151736,3408.4,3408.3,7.23584266]
[1735648034840,47.89151736,3408.4,3408.3,13.16985266]
[1735648035828,46.32701736,3408.4,3408.3,13.16985266]
[1735648036530,49.65701736,3408.4,3408.3,13.16985266]
[1735648036731,49.65701736,3408.4,3408.3,20.41443855]
[1735648037718,49.65701736,3408.4,3408.3,16.11978403]
[1735648038040,49.65701736,3408.4,3408.3,13.16985266]
[1735648038974,52.98701736,3408.4,3408.3,13.16985266]
[1735648041178,52.98701736,3408.4,3408.3,13.71985266]
[1735648041353,56.31701736,3408.4,3408.3,13.71985266]
[1735648041986,56.31701736,3408.4,3408.3,13.16985266]
[1735648042534,54.6047686,3408.4,3408.3,10.23584266]
[1735648042979,54.6047686,3408.4,3408.3,13.16985266]
[1735648043778,57.9347686,3408.4,3408.3,13.16985266]
[1735648045242,57.9347686,3408.4,3408.3,17.46706484]
[1735648046058,61.2647686,3408.4,3408.3,17.46706484]
[1735648046363,64.26106817,3408.4,3408.3,11.53305484]
[1735648046794,64.26106817,3408.4,3408.3,14.53305484]
[1735648047489,61.2647686,3408.4,3408.3,14.53305484]
[1735648048191,61.2647686,3408.4,3408.3,11.33031402]
[1735648048695,64.5947686,3408.4,3408.3,11.33031402]
[1735648049297,64.5947686,3408.4,3408.3,8.25898371]
[1735648050477,64.5947686,3408.4,3408.3,10.71408231]
[1735648051187,70.92106817,3408.4,3408.3,10.71408231]
[1735648052096,67.9247686,3408.4,3408.3,10.71408231]
[1735648053535,71.2547686,3408.4,3408.3,8.25898371]
[1735648054033,71.2547686,3408.4,3408.3,1.51285371]
[1735648054329,74.1886886,3408.4,3408.3,1.51285371]
[1735648054986,74.1886886,3408.4,3408.3,3.35302392]
[1735648055388,77.18498817,3408.4,3408.3,3.35302392]
[1735648055709,74.25106817,3408.4,3408.3,3.35302392]
[1735648055906,77.58106817,3408.4,3408.3,3.35302392]
[1735648056489,76.02656817,3408.4,3408.0,1.22653055]
[1735648056784,1.5919,3408.2,3408.0,1.22653055]
[1735648056989,1.5919,3408.2,3408.1,2.79542]
[1735648058339,4.9219,3408.2,3408.1,2.79542]
[1735648060763,8.2519,3408.2,3408.1,2.79542]
[1735648060957,8.2519,3408.2,3408.1,4.02195055]
[1735648061142,8.2519,3408.2,3408.1,6.22653055]
[1735648061468,6.66,3408.2,3408.1,6.22653055]
[1735648061672,6.66,3408.2,3408.1,16.18720785]
[1735648062660,6.66,3408.2,3408.1,17.70006156]
[1735648063325,9.99,3408.2,3408.1,17.70006156]
[1735648064070,9.99,3408.2,3408.1,19.43266592]
[1735648064277,6.72286175,3408.2,3408.1,19.43266592]
[1735648065775,10.05286175,3408.2,3408.1,19.43266592]
[1735648066683,10.05286175,3408.2,3408.1,19.98266592]
[1735648066832,10.05286175,3408.2,3408.1,21.56766592]
[1735648067038,7.11876175,3408.2,3408.1,21.56766592]
[1735648067239,2.71761175,3408.2,3408.1,21.56766592]
[1735648068158,6.04761175,3408.2,3408.1,21.56766592]
[1735648068357,6.04761175,3408.2,3408.1,28.33525196]
[1735648068557,3.33718147,3408.2,3408.1,28.33525196]
[1735648069174,53.05513679,3408.4,3408.3,2.93401]
[1735648069366,37.06069201,3408.4,3408.3,12.27069301]
[1735648069560,37.06069201,3408.4,3408.3,12.99367335]
[1735648069884,29.92409201,3408.4,3408.3,16.24327335]
[1735648070062,23.21009308,3408.4,3408.3,11.24327335]
[1735648070386,17.20911308,3408.4,3408.3,11.24327335]
[1735648070680,11.83496308,3408.4,3408.3,16.24327335]
[1735648070894,9.16238308,3408.4,3408.3,52.95126197]
[1735648071050,1.21797845,3409.0,3408.9,2.93349]
[1735648071244,3.33,3409.4,3408.9,2.93349]
[1735648071245,7.05702,3409.3,3409.2,2.93323]
[1735648071592,2.65755,3409.3,3409.2,16.55493833]
[1735648071773,2.65755,3409.3,3409.2,15.75015155]
[1735648072279,1.19106,3409.3,3409.2,16.30015155]
[1735648072581,5.6e-07,3409.5,3409.4,6.48306]
[1735648072782,5.6e-07,3409.5,3409.4,8.47694956]
[1735648072943,3.33000056,3409.5,3409.4,8.47694956]
[1735648073573,1.86351056,3409.5,3409.4,8.47694956]
[1735648073774,0.39702056,3409.5,3409.4,8.47694956]
[1735648073983,0.39702056,3409.5,3409.4,13.47694956]
[1735648074687,0.1705566,3410.0,3409.9,2.93263]
[1735648074905,6.6e-06,3410.0,3409.9,10.95306199]
[1735648075052,6.6e-06,3410.0,3409.9,15.95306199]
[1735648075593,3.3300066,3410.0,3409.9,15.95306199]
[1735648075793,3.3300066,3410.0,3409.9,15.40306199]
[1735648076399,3.3300066,3410.0,3409.9,24.13872499]
[1735648076595,3.3300066,3410.0,3409.9,24.68872499]
[1735648077462,3.3300066,3410.0,3409.9,20.42505061]
[1735648078069,6.6600066,3410.0,3409.9,20.42505061]
[1735648079282,3.10386299,3410.0,3409.9,20.42505061]
[1735648079991,3.10386299,3410.0,3409.9,23.46571199]
[1735648080191,1.5926,3410.8,3410.4,2.93217]
[1735648080396,1.5926,3410.8,3410.5,5.0]
[1735648080878,1.5926,3410.8,3410.3,10.93226]
[1735648081083,1.5926,3410.8,3410.5,3.0]
[1735648081284,1.5926,3410.8,3410.6,5.0]
[1735648081472,1.5926,3410.8,3410.2,0.55]
[1735648081674,1.5926,3410.8,3410.4,2.93216]
[1735648081887,1.5926,3410.8,3410.5,8.0]
[1735648082214,1.5926,3410.8,3410.6,5.98227596]
[1735648082515,1.5926,3410.8,3410.7,5.0]
[1735648082912,4.9226,3410.8,3410.7,5.0]
[1735648083641,4.9226,3410.8,3410.6,5.0]
[1735648083821,5.41686,3410.8,3410.6,5.0]
[1735648084027,1.6077,3410.7,3410.6,5.0]
[1735648084339,3.33,3410.8,3410.4,5.0]
[1735648084506,3.33,3410.8,3410.6,2.93198]
[1735648084708,3.33,3410.8,3410.7,5.0]
[1735648085326,6.66,3410.8,3410.7,5.0]
[1735648085836,6.66,3410.8,3410.7,7.93194]
[1735648086040,6.66,3410.8,3410.7,5.0]
[1735648086214,6.66,3410.8,3410.6,7.93196]
[1735648086414,6.66,3410.8,3410.7,5.0]
[1735648087917,9.99,3410.8,3410.7,5.0]
[1735648090233,13.32,3410.8,3410.7,5.0]
[1735648092350,13.32,3410.8,3410.7,10.93194]
[1735648092556,13.32,3410.8,3410.7,12.53384]
[1735648092755,16.65,3410.8,3410.7,13.08384]
[1735648093064,16.65,3410.8,3410.7,13.51334377]
[1735648093272,10.78628,3410.8,3410.7,13.90862678]
[1735648094328,10.78628,3410.8,3410.7,8.75672678]
[1735648094528,10.78628,3410.8,3410.7,7.93194]
[1735648094747,10.78628,3410.8,3410.7,10.4363243]
[1735648094966,5.3461719,3410.8,3410.7,13.4363243]
[1735648095329,8.6761719,3410.8,3410.7,13.4363243]
[1735648096166,8.6761719,3410.8,3410.7,13.9863243]
[1735648096357,8.6761719,3410.8,3410.7,11.48194]
[1735648096670,5.41152239,3410.8,3410.7,11.48194]
[1735648097772,8.74152239,3410.8,3410.7,11.48194]
[1735648097971,4.38903237,3410.8,3410.7,8.55]
[1735648100313,7.71903237,3410.8,3410.7,11.48194]
[1735648102771,11.04903237,3410.8,3410.7,11.48194]
[1735648103195,11.04903237,3410.8,3410.7,8.55]
[1735648103395,12.60773237,3410.8,3410.7,8.0]
[1735648103610,12.60773237,3410.8,3410.7,7.17384]
[1735648105273,15.93773237,3410.8,3410.7,7.17384]
[1735648106577,17.53350561,3410.8,3410.7,4.17384]
[1735648106772,17.53350561,3410.8,3410.5,5.0]
[1735648107011,15.93773237,3410.8,3410.5,5.0]
[1735648107705,19.26773237,3410.8,3410.5,5.0]
[1735648107905,19.26773237,3410.8,3410.5,7.82303199]
[1735648108203,19.26773237,3410.8,3410.6,5.0]
[1735648109282,19.26773237,3410.8,3410.7,2.50404105]
[1735648109496,19.26773237,3410.8,3410.7,7.50404105]
[1735648110098,21.03903237,3410.8,3410.7,7.50404105]
[1735648110632,21.03903237,3410.8,3410.7,8.71614215]
[1735648111997,21.03903237,3410.8,3410.7,9.32700544]
[1735648112533,24.36903237,3410.8,3410.7,9.32700544]
[1735648112908,27.44803553,3410.8,3410.7,9.32700544]
[1735648113095,27.44803553,3410.8,3410.7,7.21800544]
[1735648113096,30.37989553,3410.8,3410.7,7.21800544]
[1735648113304,30.37989553,3410.8,3410.7,4.93466024]
[1735648113639,30.37989553,3410.8,3410.7,7.79982024]
[1735648114541,30.37989553,3410.8,3410.7,2.44539]
[1735648114722,28.82119553,3410.8,3410.6,2.44539]
[1735648115040,4.43471955,3410.7,3410.6,2.44539]
[1735648115401,4.43471955,3410.7,3410.5,1.22307866]
[1735648115402,1.5526,3410.6,3410.5,1.22307866]
[1735648115596,1.5526,3410.6,3410.5,3.32827866]
[1735648115597,4.48463,3410.6,3410.5,3.32827866]
[1735648115809,1.5526,3410.6,3410.5,3.32827866]
[1735648116102,1.5526,3410.6,3410.5,3.93981799]
[1735648116317,4.54889957,3410.6,3410.5,1.83461799]
[1735648117107,4.54889957,3410.6,3410.5,4.9405898]
[1735648117307,7.87889957,3410.6,3410.5,4.9405898]
[1735648117908,10.81092957,3410.6,3410.5,4.9405898]
[1735648119503,10.81092957,3410.6,3410.5,9.9405898]
[1735648119733,14.14092957,3410.6,3410.5,9.9405898]
[1735648119933,8.2126,3410.6,3410.5,5.0]
[1735648120249,8.2126,3410.6,3410.3,5.0]
[1735648121123,8.2126,3410.6,3410.5,4.34783669]
[1735648121431,8.2126,3410.6,3410.5,9.34783669]
[1735648122023,11.5426,3410.6,3410.5,9.34783669]
[1735648122755,11.5426,3410.6,3410.5,7.43061919]
[1735648123150,9.99,3410.6,3410.5,7.43061919]
[1735648123651,9.99,3410.6,3410.5,9.9405898]
[1735648124349,9.99,3410.6,3410.5,12.8727098]
[1735648124646,13.32,3410.6,3410.5,12.8727098]
[1735648124824,13.32,3410.6,3410.5,9.9405898]
[1735648125212,13.32,3410.6,3410.5,9.51431918]
[1735648125754,14.8726,3410.6,3410.5,9.51431918]
[1735648126647,14.8726,3410.6,3410.5,7.50997061]
[1735648126805,13.32,3410.6,3410.5,7.50997061]
[1735648127008,16.65,3410.6,3410.5,7.50997061]
[1735648128208,18.95648691,3410.6,3410.5,7.50997061]
[1735648128412,20.54358691,3410.6,3410.5,7.50997061]
[1735648129325,18.2371,3410.6,3410.5,7.50997061]
[1735648129523,21.5671,3410.6,3410.5,7.50997061]
[1735648129840,24.49913,3410.6,3410.5,7.50997061]
[1735648130033,24.49913,3410.6,3410.5,2.50997061]
[1735648130240,24.49913,3410.6,3410.5,6.20207061]
[1735648130548,27.49542957,3410.6,3410.5,6.20207061]
[1735648130747,21.5671,3410.6,3410.5,8.03839226]
[1735648130937,21.5671,3410.6,3410.5,7.35221226]
[1735648131656,21.5671,3410.6,3410.5,6.47366226]
[1735648131969,24.8971,3410.6,3410.5,5.86101139]
[1735648132173,27.89339957,3410.6,3410.5,5.86101139]
[1735648132971,30.82542957,3410.6,3410.5,3.73364139]
[1735648133343,30.82542957,3410.6,3410.5,1.00754598]
[1735648134234,34.15542957,3410.6,3410.5,1.00754598]
[1735648134432,2.93229,3410.3,3410.2,2.23121676]
[1735648134772,7.42958957,3410.3,3410.2,2.23121676]
[1735648135867,4.49729957,3410.3,3409.8,1.22367078]
[1735648136176,2.93246,3410.2,3409.9,5.0]
[1735648136732,3.33,3410.2,3409.9,4.08997]
[1735648137046,2.93247,3410.1,3409.9,4.18503]
[1735648137435,2.93247,3410.1,3410.0,1.00754598]
[1735648137834,4.43347,3410.1,3410.0,3.94785598]
[1735648138050,1.501,3410.1,3410.0,3.94785598]
[1735648138277,1.501,3410.1,3410.0,3.50167598]
[1735648138435,1.501,3410.1,3410.0,1.00754598]
[1735648138847,1.501,3410.1,3410.0,3.46265598]
[1735648139049,1.501,3410.1,3410.0,3.54138598]
[1735648139273,4.831,3410.1,3410.0,3.54138598]
[1735648139858,4.831,3410.1,3410.0,3.25296598]
[1735648140249,4.831,3410.1,3410.0,3.28914598]
[1735648140456,3.33,3410.1,3410.0,3.08811598]
[1735648141658,6.66,3410.1,3410.0,3.08811598]
[1735648142166,6.66,3410.1,3410.0,5.91114797]
[1735648142370,6.66,3410.1,3410.0,4.31178676]
[1735648143056,6.66,3410.1,3410.0,10.06736875]
[1735648143972,6.66,3410.1,3410.0,12.8074173]
[1735648144175,9.99,3410.1,3410.0,12.8074173]
[1735648145891,9.99,3410.1,3410.0,10.35898843]
[1735648146076,6.72464125,3410.1,3410.0,10.35898843]
[1735648146662,10.05464125,3410.1,3410.0,10.35898843]
[1735648147706,10.05464125,3410.1,3410.0,7.42643843]
[1735648148090,10.05464125,3410.1,3410.0,13.48200831]
[1735648149209,13.38464125,3410.1,3410.0,13.48200831]
[1735648149511,13.38464125,3410.1,3410.0,10.42643843]
[1735648151103,13.38464125,3410.1,3410.0,15.48635688]
[1735648151868,16.71464125,3410.1,3410.0,15.48635688]
[1735648152272,16.71464125,3410.1,3410.0,18.41890688]
[1735648152469,16.71464125,3410.1,3410.0,12.48635688]
[1735648153993,16.71464125,3410.1,3410.0,10.35898843]
[1735648154380,20.04464125,3410.1,3410.0,10.35898843]
[1735648156214,20.04464125,3410.1,3410.0,14.01142701]
[1735648156504,20.04464125,3410.1,3410.0,17.01142701]
[1735648156909,23.37464125,3410.1,3410.0,17.01142701]
[1735648157925,23.37464125,3410.1,3410.0,10.26019359]
[1735648158425,26.20422538,3410.1,3410.0,10.26019359]
[1735648158997,23.37464125,3410.1,3410.0,4.60340644]
[1735648159375,26.70464125,3410.1,3410.0,7.42643843]
[1735648159902,26.70464125,3410.1,3410.0,10.35898843]
[1735648161904,30.03464125,3410.1,3410.0,10.35898843]
[1735648162434,30.03464125,3410.1,3410.0,4.60340644]
[1735648164543,33.36464125,3410.1,3410.0,4.60340644]
[1735648164998,33.36464125,3410.1,3410.0,7.66270547]
[1735648167440,36.69464125,3410.1,3410.0,7.66270547]
[1735648168609,41.24494082,3410.1,3410.0,5.58213547]
[1735648169038,41.24494082,3410.1,3410.0,8.85855547]
[1735648169826,44.57494082,3410.1,3410.0,6.73224747]
[1735648171364,44.57494082,3410.1,3410.0,5.79925644]
[1735648172127,47.90494082,3410.1,3410.0,5.79925644]
[1735648172724,47.90494082,3410.1,3410.0,8.24753793]
[1735648172920,47.90494082,3410.1,3410.0,4.97111793]
[1735648173867,47.90494082,3410.1,3410.0,9.38375793]
[1735648174040,47.90494082,3410.1,3410.0,4.37284598]
[1735648174878,51.23494082,3410.1,3410.0,1.00754598]
[1735648175331,51.23494082,3410.1,3410.0,3.48818598]
[1735648175669,51.23494082,3410.1,3410.0,3.20918598]
[1735648176026,51.23494082,3410.1,3410.0,6.56125816]
[1735648177061,51.23494082,3410.1,3410.0,4.35961816]
[1735648177241,54.56494082,3410.1,3410.0,7.46025816]
[1735648177568,54.56494082,3410.1,3410.0,6.79491816]
[1735648177754,54.56494082,3410.1,3410.0,6.45091816]
[1735648177956,54.56494082,3410.1,3410.0,4.35961816]
[1735648178630,54.56494082,3410.1,3410.0,7.16653816]
[1735648179668,54.56494082,3410.1,3410.0,5.6512477]
[1735648179859,57.89494082,3410.1,3410.0,5.6512477]
[1735648180055,57.89494082,3410.1,3410.0,2.8443277]
[1735648182370,61.22494082,3410.1,3410.0,2.8443277]
[1735648184060,61.22494082,3410.1,3410.0,1.00754598]
[1735648184454,61.22494082,3410.1,3410.0,6.00754598]
[1735648184661,64.55494082,3410.1,3410.0,4.61543598]
[1735648186387,64.55494082,3410.1,3410.0,3.92121598]
[1735648186592,64.55494082,3410.1,3410.0,1.00754598]
[1735648186888,64.55494082,3410.1,3410.0,7.51403816]
[1735648187062,67.88494082,3410.1,3410.0,9.35961816]
[1735648187265,63.33464125,3410.1,3410.0,9.35961816]
[1735648187661,63.33464125,3410.1,3410.0,8.93285816]
[1735648189189,63.33464125,3410.1,3410.0,9.54435793]
[1735648189393,63.33464125,3410.1,3410.0,4.97111793]
[1735648189550,66.66464125,3410.1,3410.0,4.97111793]
[1735648189753,71.30024082,3410.1,3410.0,4.97111793]
[1735648189952,71.30024082,3410.1,3410.0,9.97111793]
[1735648190181,71.30024082,3410.1,3410.0,8.38582793]
[1735648190794,71.30024082,3410.1,3410.0,6.87053747]
[1735648191953,74.63024082,3410.1,3410.0,6.87053747]
[1735648192777,74.63024082,3410.1,3410.0,8.38582793]
[1735648193598,71.63394125,3410.1,3410.0,8.38582793]
[1735648193991,69.99464125,3410.1,3410.0,8.38582793]
[1735648194501,73.32464125,3410.1,3410.0,8.38582793]
[1735648195673,73.32464125,3410.1,3410.0,4.97111793]
[1735648196868,76.65464125,3410.1,3410.0,4.97111793]
[1735648197068,79.65094082,3410.1,3410.0,4.97111793]
[1735648197901,81.29024082,3410.1,3410.0,4.97111793]
[1735648198274,81.29024082,3410.1,3410.0,2.84474727]
[1735648199201,81.29024082,3410.1,3410.0,7.84474727]
[1735648199406,84.62024082,3410.1,3410.0,7.84474727]
[1735648199612,84.62024082,3410.1,3410.0,5.18524727]
[1735648199967,84.62024082,3410.1,3410.0,3.34804598]
[1735648200603,79.98464125,3410.1,3410.0,3.34804598]
[1735648201704,83.31464125,3410.1,3410.0,3.34804598]
[1735648201908,83.31464125,3410.1,3410.0,6.70053773]
[1735648203271,83.31464125,3410.1,3410.0,4.97111793]
[1735648203892,84.87544125,3410.1,3410.0,4.97111793]
[1735648204095,91.20174082,3410.1,3410.0,4.97111793]
[1735648204504,91.20174082,3410.1,3410.0,7.49993793]
[1735648205105,91.20174082,3410.1,3410.0,8.11196793]
[1735648205971,91.20174082,3410.1,3410.0,4.97111793]
[1735648206440,86.64464125,3410.1,3410.0,4.97111793]
[1735648206592,89.97464125,3410.1,3410.0,4.97111793]
[1735648207215,89.97464125,3410.1,3410.0,2.52283644]
[1735648207428,89.97464125,3410.1,3410.0,4.76981644]
[1735648208541,89.97464125,3410.1,3410.0,7.70236644]
[1735648209203,93.30464125,3410.1,3410.0,10.76166547]
[1735648210410,93.30464125,3410.1,3410.0,9.70671501]
[1735648211741,96.63464125,3410.1,3410.0,13.35915359]
[1735648212447,96.63464125,3410.1,3410.0,14.92575359]
[1735648213078,96.63464125,3410.1,3410.0,11.99320359]
[1735648213882,96.63464125,3410.1,3410.0,10.42660359]
[1735648214142,102.96094082,3410.1,3410.0,10.42660359]
[1735648214667,102.96094082,3410.1,3410.0,6.77416501]
[1735648214820,105.89340082,3410.1,3410.0,6.77416501]
[1735648215112,102.96094082,3410.1,3410.0,6.77416501]
[1735648216080,102.96094082,3410.1,3410.0,7.83324139]
[1735648216875,106.29094082,3410.1,3410.0,7.83324139]
[1735648217519,103.29464125,3410.1,3410.0,7.83324139]
[1735648217679,103.29464125,3410.1,3410.0,4.76981644]
[1735648219522,106.62464125,3410.1,3410.0,4.76981644]
[1735648220788,106.62464125,3410.1,3410.0,7.83324139]
[1735648221805,109.95464125,3410.1,3410.0,7.83324139]
[1735648222051,109.95464125,3410.1,3410.0,4.76981644]
[1735648224342,113.28464125,3410.1,3410.0,4.76981644]
[1735648225361,113.28464125,3410.1,3410.0,7.83324139]
[1735648226828,116.61464125,3410.1,3410.0,7.83324139]
[1735648227204,116.61464125,3410.1,3410.0,8.27636501]
[1735648229340,119.94464125,3410.1,3410.0,11.20891501]
[1735648230150,119.94464125,3410.1,3410.0,14.88362496]
[1735648231346,119.94464125,3410.1,3410.0,8.27636501]
[1735648231855,123.27464125,3410.1,3410.0,8.27636501]
[1735648233359,123.27464125,3410.1,3410.0,11.20891501]
[1735648234661,126.60464125,3410.1,3410.0,11.20891501]
[1735648234836,126.60464125,3410.1,3410.0,8.27636501]
[1735648235725,126.60464125,3410.1,3410.0,11.20891501]
[1735648236024,126.60464125,3410.1,3410.0,14.88327279]
[1735648237319,129.93464125,3410.1,3410.0,14.88327279]
[1735648237523,129.93464125,3410.1,3410.0,11.20891501]
[1735648238827,129.93464125,3410.1,3410.0,9.20456644]
[1735648240159,133.26464125,3410.1,3410.0,9.20456644]
[1735648240365,133.26464125,3410.1,3410.0,14.88184642]
[1735648242241,133.26464125,3410.1,3410.0,17.88184642]
[1735648242440,133.26464125,3410.1,3410.0,15.87749785]
[1735648242761,136.59464125,3410.1,3410.0,9.68173]
[1735648244992,139.92464125,3410.1,3410.0,14.23686757]
[1735648246289,139.92464125,3410.1,3410.0,16.71748513]
[1735648246451,139.92464125,3410.1,3410.0,17.26748513]
[1735648246785,136.6593168,3410.1,3410.0,17.26748513]
[1735648247450,139.9893168,3410.1,3410.0,17.26748513]
[1735648248054,135.63602229,3410.1,3410.0,22.3287491]
[1735648248252,135.63602229,3410.1,3410.0,22.6691241]
[1735648249287,135.63602229,3410.1,3410.0,17.60786013]
[1735648249654,135.63602229,3410.1,3410.0,14.05786013]
[1735648249980,138.96602229,3410.1,3410.0,14.05786013]
[1735648250691,138.96602229,3410.1,3410.0,17.05786013]
[1735648252253,138.96602229,3410.1,3410.0,21.2769629]
[1735648252254,142.29602229,3410.1,3410.0,21.2769629]
[1735648252989,134.96487229,3410.1,3410.0,24.09795546]
[1735648253502,134.96487229,3410.1,3410.0,21.2769629]
[1735648253980,134.96487229,3410.1,3410.0,17.60786013]
[1735648254691,138.29487229,3410.1,3410.0,17.60786013]
[1735648255495,136.82864229,3410.1,3410.0,22.6691241]
[1735648256255,135.36241229,3410.1,3410.0,22.6691241]
[1735648256458,132.42995229,3410.1,3410.0,22.6691241]
[1735648257214,127.38625921,3410.1,3410.0,22.6691241]
[1735648257393,125.92002921,3410.1,3410.0,22.6691241]
[1735648258306,122.98756921,3410.1,3410.0,22.6691241]
[1735648258692,118.63464756,3410.1,3410.0,22.6691241]
[1735648259408,117.16841756,3410.1,3410.0,17.60786013]
[1735648259620,116.09972756,3410.1,3410.0,17.60786013]
[1735648260045,116.09972756,3410.1,3410.0,11.23686757]
[1735648260352,116.09972756,3410.1,3410.0,12.55566013]
[1735648260521,116.09972756,3410.1,3410.0,9.62311013]
[1735648260820,120.72562713,3410.1,3410.0,9.62311013]
[1735648260982,117.72932756,3410.1,3410.0,15.55566013]
[1735648261383,116.09972756,3410.1,3410.0,15.55566013]
[1735648261991,119.42972756,3410.1,3410.0,15.55566013]
[1735648262523,119.42972756,3410.1,3410.0,17.17166013]
[1735648262725,119.42972756,3410.1,3410.0,17.72166013]
[1735648264826,122.75972756,3410.1,3410.0,17.72166013]
[1735648265026,119.49466091,3410.1,3410.0,17.72166013]
[1735648266429,119.49466091,3410.1,3410.0,17.17166013]
[1735648266625,119.49466091,3410.1,3410.0,15.55566013]
[1735648267357,122.82466091,3410.1,3410.0,15.55566013]
[1735648269745,126.15466091,3410.1,3410.0,15.55566013]
[1735648272114,129.48466091,3410.1,3410.0,15.55566013]
[1735648272816,126.55220091,3410.1,3410.0,17.72166013]
[1735648273017,122.15351091,3410.1,3410.0,22.30665269]